[Event "FIDE Women World Blitz 2021"]
[Site "Warsaw"]
[Date "2021.12.29"]
[Round "1.13"]
[White "Nurgali, Nazerke"]
[Black "Kashlinskaya, Alina"]
[Result "1/2-1/2"]
[ECO "E92"]
[WhiteElo "2267"]
[BlackElo "2482"]
[Annotator "ChessBase"]
[PlyCount "146"]
[EventDate "2021.12.29"]
[EventType "swiss"]
[EventCountry "POL"]
[Tiebreak "Cut1 Buchholz"]
[SourceTitle "playchess.com"]
[Source "ChessBase"]
[SourceQuality "1"]
[TimeControl "180+2"]

1. d4 {[%emt 0:00:01]} Nf6 {[%emt 0:00:01]} 2. Nf3 {[%emt 0:00:02]} g6 {
[%emt 0:00:01]} 3. c4 {[%emt 0:00:01]} Bg7 {[%emt 0:00:01]} 4. Nc3 {[%emt 0:00:
02]} O-O {[%emt 0:00:02]} 5. e4 {[%emt 0:00:01]} d6 {[%emt 0:00:01]} 6. Be2 {
[%emt 0:00:02]} e5 {[%emt 0:00:02]} 7. dxe5 {[%emt 0:00:02]} dxe5 {[%emt 0:00:
02]} 8. Qxd8 Rxd8 {[%emt 0:00:01]} 9. Bg5 {[%emt 0:00:04]} Re8 {[%emt 0:00:10]}
10. O-O {[%emt 0:00:03]} c6 {[%emt 0:00:06]} 11. Rfd1 {[%emt 0:00:02]} Na6 {
[%emt 0:00:03]} 12. Nd2 {[%emt 0:00:18]} Nc5 {[%emt 0:00:09]} 13. f3 {[%emt 0:
00:03]} a5 {[%emt 0:00:02]} 14. Nb3 {[%emt 0:00:14]} Ne6 {[%emt 0:00:03]} 15.
Be3 {[%emt 0:00:02]} Nd7 {[%emt 0:00:04]} 16. Na4 {[%emt 0:00:04]} Bf8 {
[%emt 0:00:25]} 17. Rd2 {[%emt 0:00:20]} Bb4 {[%emt 0:00:04]} 18. Rc2 {[%emt 0:
00:05]} Be7 {[%emt 0:00:28]} 19. Rd1 {[%emt 0:00:07]} Bg5 {[%emt 0:00:02]} 20.
Bxg5 {[%emt 0:00:17]} Nxg5 {[%emt 0:00:01]} 21. Rcd2 {[%emt 0:00:01]} Re7 {
[%emt 0:00:32]} 22. c5 {[%emt 0:00:23]} Ne6 {[%emt 0:00:01]} 23. Bc4 {[%emt 0:
00:07]} Ndf8 {[%emt 0:00:26]} 24. Nb6 {[%emt 0:00:04]} Rb8 {[%emt 0:00:01]} 25.
Nxc8 Rxc8 {[%emt 0:00:01]} 26. Bxe6 {[%emt 0:00:17]} Nxe6 {[%emt 0:00:04]} 27.
a4 {[%emt 0:00:19]} Rb8 {[%emt 0:00:07]} 28. Rc1 {[%emt 0:00:13]} Kg7 {[%emt 0:
00:09]} 29. Nxa5 {[%emt 0:00:06]} Nd4 {[%emt 0:00:06]} 30. Rc3 {[%emt 0:00:09]}
Ra8 {[%emt 0:00:05]} 31. b4 {[%emt 0:00:03]} f5 {[%emt 0:00:04]} 32. Ra2 {
[%emt 0:00:08]} h5 {[%emt 0:00:13]} 33. Nb3 {[%emt 0:00:03]} Rxa4 {[%emt 0:00:
04]} 34. Rxa4 {[%emt 0:00:05]} Ne2+ {[%emt 0:00:01]} 35. Kf2 {[%emt 0:00:01]}
Nxc3 {[%emt 0:00:01]} 36. Ra7 {[%emt 0:00:08]} fxe4 {[%emt 0:00:01]} 37. Na5 {
[%emt 0:00:05]} Nd5 {[%emt 0:00:06]} 38. fxe4 {[%emt 0:00:07]} Rf7+ {[%emt 0:
00:05]} 39. Ke2 {[%emt 0:00:03]} Nxb4 {[%emt 0:00:12]} 40. Rxb7 {[%emt 0:00:01]
} Rxb7 {[%emt 0:00:02]} 41. Nxb7 {[%emt 0:00:01]} Kf6 {[%emt 0:00:05]} 42. Ke3
{[%emt 0:00:01]} Ke6 {[%emt 0:00:08]} 43. g3 {[%emt 0:00:01]} Nc2+ {[%emt 0:00:
01]} 44. Kd3 {[%emt 0:00:01]} Ne1+ {[%emt 0:00:02]} 45. Ke3 {[%emt 0:00:02]}
Nc2+ {[%emt 0:00:01]} 46. Kd3 {[%emt 0:00:00]} Nd4 {[%emt 0:00:01]} 47. Nd8+ {
[%emt 0:00:04]} Ke7 {[%emt 0:00:01]} 48. Nb7 {[%emt 0:00:03]} Nf3 {[%emt 0:00:
01]} 49. h3 {[%emt 0:00:03]} Ng5 {[%emt 0:00:03]} 50. h4 {[%emt 0:00:01]} Ne6 {
[%emt 0:00:01]} 51. Kc4 {[%emt 0:00:03]} g5 {[%emt 0:00:02]} 52. Nd6 {[%emt 0:
00:06]} gxh4 {[%emt 0:00:02]} 53. gxh4 {[%emt 0:00:01]} Nd4 {[%emt 0:00:05]}
54. Kd3 {[%emt 0:00:04]} Ke6 {[%emt 0:00:01]} 55. Ke3 {[%emt 0:00:02]} Nb3 {
[%emt 0:00:01]} 56. Nb7 {[%emt 0:00:01]} Kd7 {[%emt 0:00:02]} 57. Kd3 {[%emt 0:
00:03]} Kc7 58. Kc3 {[%emt 0:00:00]} Nd4 {[%emt 0:00:02]} 59. Nd6 {[%emt 0:00:
02]} Nf3 {[%emt 0:00:04]} 60. Nf5 {[%emt 0:00:03]} Kd7 {[%emt 0:00:01]} 61. Kd3
{[%emt 0:00:02]} Ne1+ {[%emt 0:00:01]} 62. Kc4 {[%emt 0:00:02]} Ng2 {[%emt 0:
00:01]} 63. Kd3 {[%emt 0:00:02]} Nf4+ {[%emt 0:00:02]} 64. Ke3 {[%emt 0:00:01]}
Ne6 {[%emt 0:00:01]} 65. Ng3 {[%emt 0:00:02]} Nf4 {[%emt 0:00:03]} 66. Nf5 {
[%emt 0:00:03]} Ke6 {[%emt 0:00:01]} 67. Ng3 {[%emt 0:00:03]} Kf6 {[%emt 0:00:
03]} 68. Nf5 {[%emt 0:00:00]} Ng2+ {[%emt 0:00:07]} 69. Kf3 {[%emt 0:00:00]}
Nf4 {[%emt 0:00:01]} 70. Ke3 {[%emt 0:00:00]} Ne6 {[%emt 0:00:03]} 71. Ng3 {
[%emt 0:00:01]} Kg6 {[%emt 0:00:03]} 72. Nf5 {[%emt 0:00:02]} Kf6 {[%emt 0:00:
02]} 73. Ng3 {[%emt 0:00:01]} Nf4 {[%emt 0:00:01]} 1/2-1/2

[Event "FIDE Women World Blitz 2021"]
[Site "Warsaw"]
[Date "2021.12.29"]
[Round "1.13"]
[White "Maisuradze, Nino"]
[Black "Szczotka, Klara"]
[Result "1-0"]
[ECO "A04"]
[WhiteElo "2175"]
[BlackElo "1584"]
[Annotator "NA"]
[PlyCount "87"]
[EventDate "2021.12.29"]
[EventType "swiss"]
[EventCountry "POL"]
[Tiebreak "Cut1 Buchholz"]
[SourceTitle "playchess.com"]
[Source "ChessBase"]
[SourceQuality "1"]
[TimeControl "180+2"]

1. Nf3 {[%emt 0:00:00]} c5 {[%emt 0:00:01]} 2. g3 {[%emt 0:00:20]} g6 {[%emt 0:
00:02]} 3. Bg2 {[%emt 0:00:01]} Bg7 {[%emt 0:00:01]} 4. O-O {[%emt 0:00:01]}
Nf6 {[%emt 0:00:01]} 5. d3 {[%emt 0:00:01]} Nc6 {[%emt 0:00:02]} 6. e4 {
[%emt 0:00:02]} d6 {[%emt 0:00:02]} 7. h3 {[%emt 0:00:05]} O-O {[%emt 0:00:04]}
8. Be3 {[%emt 0:00:06]} a6 {[%emt 0:00:08]} 9. a4 {[%emt 0:00:02]} Rb8 {
[%emt 0:00:01]} 10. Qd2 {[%emt 0:00:06]} Re8 {[%emt 0:00:04]} 11. Bh6 {[%emt 0:
00:11]} Bh8 {[%emt 0:00:04]} 12. Nc3 {[%emt 0:00:08]} e6 {[%emt 0:00:05]} 13.
Ng5 {[%emt 0:00:12]} Nd4 {[%emt 0:00:29]} 14. f4 {[%emt 0:00:06]} b5 {[%emt 0:
00:10]} 15. axb5 {[%emt 0:00:03]} axb5 {[%emt 0:00:01]} 16. Ne2 {[%emt 0:00:21]
} Nxe2+ {[%emt 0:00:02]} 17. Qxe2 {[%emt 0:00:01]} Nh5 {[%emt 0:00:26]} 18. Kh2
{[%emt 0:00:43]} Bxb2 {[%emt 0:00:10]} 19. Rab1 {[%emt 0:00:28]} Bg7 {[%emt 0:
00:07]} 20. Bxg7 {[%emt 0:00:05]} Nxg7 {[%emt 0:00:01]} 21. Rbe1 {[%emt 0:00:
11]} h6 {[%emt 0:00:07]} 22. Nf3 {[%emt 0:00:02]} Bb7 {[%emt 0:00:18]} 23. Qd2
{[%emt 0:00:01]} Kh7 {[%emt 0:00:11]} 24. g4 {[%emt 0:00:01]} d5 {[%emt 0:00:
17]} 25. e5 {[%emt 0:00:09]} b4 {[%emt 0:00:16]} 26. d4 {[%emt 0:00:03]} Ba6 {
[%emt 0:00:04]} 27. Rf2 {[%emt 0:00:01]} c4 {[%emt 0:00:02]} 28. Rb1 {[%emt 0:
00:09]} c3 {[%emt 0:00:01]} 29. Qe3 {[%emt 0:00:04]} Bc4 {[%emt 0:00:03]} 30.
Ne1 {[%emt 0:00:02]} Qe7 {[%emt 0:00:08]} 31. Nd3 {[%emt 0:00:01]} Bxd3 {
[%emt 0:00:03]} 32. Qxd3 {[%emt 0:00:01]} Rec8 {[%emt 0:00:06]} 33. f5 {
[%emt 0:00:01]} gxf5 {[%emt 0:00:18]} 34. gxf5 {[%emt 0:00:01]} Nxf5 {[%emt 0:
00:06]} 35. Bxd5 {[%emt 0:00:06]} Rd8 {[%emt 0:00:03]} 36. Be4 {[%emt 0:00:02]}
Kh8 {[%emt 0:00:05]} 37. Bxf5 {[%emt 0:00:02]} exf5 {[%emt 0:00:01]} 38. Rxf5 {
[%emt 0:00:05]} Qd7 {[%emt 0:00:01]} 39. Rbf1 {[%emt 0:00:02]} Qxd4 {[%emt 0:
00:02]} 40. Qf3 {[%emt 0:00:12]} Re8 {[%emt 0:00:04]} 41. Rh5 {[%emt 0:00:02]}
Rxe5 {[%emt 0:00:04]} 42. Rxh6+ {[%emt 0:00:03]} Kg7 {[%emt 0:00:01]} 43. Qf6+
{[%emt 0:00:01]} Kf8 {[%emt 0:00:02]} 44. Rh8# {[%emt 0:00:01]} 1-0

[Event "FIDE Women World Blitz 2021"]
[Site "Warsaw"]
[Date "2021.12.29"]
[Round "1.14"]
[White "Zatonskih, Anna"]
[Black "Gil Quilez, Sonia"]
[Result "1-0"]
[ECO "D30"]
[WhiteElo "2394"]
[BlackElo "2122"]
[Annotator "NA"]
[PlyCount "99"]
[EventDate "2021.12.29"]
[EventType "swiss"]
[EventCountry "POL"]
[Tiebreak "Cut1 Buchholz"]
[SourceTitle "playchess.com"]
[Source "ChessBase"]
[SourceQuality "1"]
[TimeControl "180+2"]

1. d4 {[%emt 0:00:01]} d5 {[%emt 0:00:01]} 2. c4 {[%emt 0:00:01]} c6 {[%emt 0:
00:00]} 3. Nf3 {[%emt 0:00:02]} Nf6 {[%emt 0:00:01]} 4. Qc2 {[%emt 0:00:02]} e6
{[%emt 0:00:01]} 5. Bg5 {[%emt 0:00:47]} Nbd7 {[%emt 0:00:05]} 6. e3 {[%emt 0:
00:22]} Bd6 {[%emt 0:00:06]} 7. Nbd2 {[%emt 0:00:07]} O-O {[%emt 0:00:15]} 8.
Bd3 {[%emt 0:00:01]} h6 {[%emt 0:00:09]} 9. Bh4 {[%emt 0:00:02]} e5 {[%emt 0:
00:23]} 10. cxd5 {[%emt 0:00:28]} cxd5 {[%emt 0:00:02]} 11. dxe5 {[%emt 0:00:
10]} Nxe5 {[%emt 0:00:03]} 12. Nxe5 {[%emt 0:00:01]} Bxe5 {[%emt 0:00:02]} 13.
Nf3 {[%emt 0:00:27]} Bd6 {[%emt 0:00:01]} 14. O-O {[%emt 0:00:02]} Bg4 {
[%emt 0:00:08]} 15. Nd4 {[%emt 0:00:06]} Re8 {[%emt 0:00:39]} 16. Qb3 {[%emt 0:
00:07]} Rb8 {[%emt 0:01:19]} 17. Rac1 {[%emt 0:00:05]} a6 {[%emt 0:00:04]} 18.
Bg3 {[%emt 0:00:08]} Bxg3 {[%emt 0:00:03]} 19. hxg3 {[%emt 0:00:01]} Ne4 {
[%emt 0:00:02]} 20. Qb4 {[%emt 0:00:24]} a5 {[%emt 0:00:05]} 21. Qa4 {[%emt 0:
00:05]} Bd7 {[%emt 0:00:03]} 22. Qc2 {[%emt 0:00:04]} Nf6 {[%emt 0:00:03]} 23.
Ne2 {[%emt 0:00:03]} Qe7 {[%emt 0:00:02]} 24. Nf4 {[%emt 0:00:03]} Rec8 {
[%emt 0:00:03]} 25. Qb3 {[%emt 0:00:03]} Bc6 {[%emt 0:00:02]} 26. Rfd1 {
[%emt 0:00:01]} Ne4 {[%emt 0:00:01]} 27. Be2 {[%emt 0:00:04]} Qf6 {[%emt 0:00:
03]} 28. Bf3 {[%emt 0:00:02]} Nd6 {[%emt 0:00:02]} 29. Nxd5 {[%emt 0:00:03]}
Bxd5 {[%emt 0:00:03]} 30. Bxd5 {[%emt 0:00:01]} Rxc1 {[%emt 0:00:01]} 31. Rxc1
{[%emt 0:00:01]} b5 {[%emt 0:00:03]} 32. e4 {[%emt 0:00:01]} Qe7 {[%emt 0:00:
02]} 33. Qa3 {[%emt 0:00:01]} b4 {[%emt 0:00:03]} 34. Qxa5 {[%emt 0:00:02]}
Nxe4 {[%emt 0:00:02]} 35. Re1 {[%emt 0:00:03]} Qd8 {[%emt 0:00:06]} 36. Qxd8+ {
[%emt 0:00:03]} Rxd8 {[%emt 0:00:00]} 37. Bxe4 Rd2 38. Rb1 {[%emt 0:00:03]} Kf8
{[%emt 0:00:01]} 39. a4 {[%emt 0:00:01]} bxa3 {[%emt 0:00:02]} 40. bxa3 {
[%emt 0:00:01]} Ra2 {[%emt 0:00:00]} 41. Rb3 {[%emt 0:00:03]} Ke7 {[%emt 0:00:
01]} 42. Bc6 {[%emt 0:00:03]} Kd6 {[%emt 0:00:02]} 43. Bb5 {[%emt 0:00:01]} Kc5
{[%emt 0:00:01]} 44. a4 {[%emt 0:00:01]} f6 {[%emt 0:00:01]} 45. Rd3 {[%emt 0:
00:01]} g5 {[%emt 0:00:02]} 46. g4 {[%emt 0:00:01]} Rb2 {[%emt 0:00:02]} 47.
Rd8 {[%emt 0:00:01]} Rb1+ {[%emt 0:00:02]} 48. Kh2 Rb2 49. f3 {[%emt 0:00:02]}
Rd2 {[%emt 0:00:06]} 50. Rxd2 {[%emt 0:00:02]} 1-0

[Event "FIDE Women World Blitz 2021"]
[Site "Warsaw"]
[Date "2021.12.29"]
[Round "1.15"]
[White "Ovod, Evgenija"]
[Black "Zhukova, Natalia"]
[Result "0-1"]
[ECO "C55"]
[WhiteElo "2366"]
[BlackElo "2331"]
[Annotator "NA"]
[PlyCount "64"]
[EventDate "2021.12.29"]
[EventType "swiss"]
[EventCountry "POL"]
[Tiebreak "Cut1 Buchholz"]
[SourceTitle "playchess.com"]
[Source "ChessBase"]
[SourceQuality "1"]
[TimeControl "180+2"]

1. e4 {[%emt 0:00:00]} e5 {[%emt 0:00:01]} 2. Nf3 Nc6 {[%emt 0:00:01]} 3. Bc4 {
[%emt 0:00:02]} Nf6 {[%emt 0:00:02]} 4. d3 {[%emt 0:00:01]} h6 {[%emt 0:00:02]}
5. O-O {[%emt 0:00:02]} g6 {[%emt 0:00:03]} 6. d4 {[%emt 0:00:29]} exd4 {
[%emt 0:01:29]} 7. e5 {[%emt 0:00:19]} d5 {[%emt 0:00:02]} 8. Bb5 {[%emt 0:00:
18]} Ne4 {[%emt 0:00:27]} 9. Nxd4 {[%emt 0:00:14]} Bd7 {[%emt 0:00:01]} 10.
Bxc6 {[%emt 0:01:13]} bxc6 {[%emt 0:00:01]} 11. Nc3 {[%emt 0:00:07]} Nxc3 {
[%emt 0:00:17]} 12. bxc3 {[%emt 0:00:01]} c5 {[%emt 0:00:08]} 13. Nb3 {[%emt 0:
00:11]} c4 {[%emt 0:00:33]} 14. Nd4 {[%emt 0:00:06]} c5 {[%emt 0:00:02]} 15.
Ne2 {[%emt 0:00:05]} Be6 {[%emt 0:00:08]} 16. Nf4 {[%emt 0:00:05]} Qd7 {
[%emt 0:00:06]} 17. Nxe6 {[%emt 0:00:09]} Qxe6 {[%emt 0:00:01]} 18. Be3 {
[%emt 0:00:03]} Rc8 {[%emt 0:00:01]} 19. f4 {[%emt 0:00:05]} Qf5 {[%emt 0:00:
08]} 20. Qf3 {[%emt 0:00:02]} Rd8 {[%emt 0:00:04]} 21. Rfd1 {[%emt 0:00:03]}
Qe6 {[%emt 0:00:02]} 22. Rab1 {[%emt 0:00:02]} Be7 {[%emt 0:00:02]} 23. Rb5 {
[%emt 0:00:03]} O-O {[%emt 0:00:04]} 24. Bxc5 {[%emt 0:00:02]} Bxc5+ {[%emt 0:
00:02]} 25. Rxc5 {[%emt 0:00:01]} Qb6 {[%emt 0:00:01]} 26. Qf2 {[%emt 0:00:03]}
Qb2 {[%emt 0:00:02]} 27. Rcxd5 {[%emt 0:00:03]} Rxd5 {[%emt 0:00:01]} 28. Rxd5
{[%emt 0:00:00]} Qxc3 {[%emt 0:00:01]} 29. h3 {[%emt 0:00:06]} Rb8 {[%emt 0:00:
01]} 30. Kh2 {[%emt 0:00:03]} Rb2 {[%emt 0:00:03]} 31. Rd2 {[%emt 0:00:04]}
Rxa2 {[%emt 0:00:01]} 32. e6 {[%emt 0:00:04]} fxe6 0-1

[Event "FIDE Women World Blitz 2021"]
[Site "Warsaw"]
[Date "2021.12.29"]
[Round "1.16"]
[White "Muzychuk, Mariya"]
[Black "Heredia Serrano, Carla"]
[Result "1-0"]
[ECO "B19"]
[WhiteElo "2536"]
[BlackElo "2138"]
[Annotator "ChessBase"]
[PlyCount "85"]
[EventDate "2021.12.29"]
[EventType "swiss"]
[EventCountry "POL"]
[Tiebreak "Cut1 Buchholz"]
[SourceTitle "playchess.com"]
[Source "ChessBase"]
[SourceQuality "1"]
[TimeControl "180+2"]

1. e4 {[%emt 0:00:01]} c6 {[%emt 0:00:00]} 2. d4 {[%emt 0:00:01]} d5 {[%emt 0:
00:01]} 3. Nc3 {[%emt 0:00:01]} dxe4 {[%emt 0:00:01]} 4. Nxe4 {[%emt 0:00:00]}
Bf5 {[%emt 0:00:01]} 5. Ng3 {[%emt 0:00:01]} Bg6 {[%emt 0:00:01]} 6. h4 {
[%emt 0:00:01]} h6 {[%emt 0:00:01]} 7. Nf3 {[%emt 0:00:01]} Nd7 {[%emt 0:00:00]
} 8. h5 {[%emt 0:00:01]} Bh7 {[%emt 0:00:01]} 9. Bd3 {[%emt 0:00:01]} Bxd3 {
[%emt 0:00:02]} 10. Qxd3 {[%emt 0:00:00]} e6 {[%emt 0:00:01]} 11. Bd2 {[%emt 0:
00:02]} Ngf6 {[%emt 0:00:03]} 12. O-O-O {[%emt 0:00:03]} Be7 {[%emt 0:00:01]}
13. Kb1 {[%emt 0:00:01]} Qb6 {[%emt 0:00:01]} 14. Nh4 {[%emt 0:00:01]} O-O-O {
[%emt 0:00:05]} 15. c4 {[%emt 0:00:04]} Rhe8 {[%emt 0:00:03]} 16. Bc3 {[%emt 0:
00:21]} Bf8 {[%emt 0:00:47]} 17. Nf3 {[%emt 0:00:06]} Bb4 {[%emt 0:00:35]} 18.
Rhe1 {[%emt 0:00:13]} Kb8 {[%emt 0:00:11]} 19. a3 {[%emt 0:00:07]} Bxc3 {
[%emt 0:00:24]} 20. Qxc3 {[%emt 0:00:01]} Qc7 {[%emt 0:00:12]} 21. Ne5 {
[%emt 0:00:31]} Nxe5 {[%emt 0:00:15]} 22. dxe5 {[%emt 0:00:01]} Nd7 {[%emt 0:
00:09]} 23. f4 {[%emt 0:00:07]} f5 {[%emt 0:00:17]} 24. Rd6 {[%emt 0:00:26]}
Nb6 {[%emt 0:00:07]} 25. Red1 {[%emt 0:00:03]} Nc8 {[%emt 0:00:03]} 26. R6d4 {
[%emt 0:00:15]} c5 {[%emt 0:00:07]} 27. R4d2 {[%emt 0:00:08]} Ne7 {[%emt 0:00:
08]} 28. Qe3 {[%emt 0:00:17]} Kc8 {[%emt 0:00:07]} 29. Ne2 {[%emt 0:00:04]}
Rxd2 {[%emt 0:00:04]} 30. Rxd2 {[%emt 0:00:01]} Rd8 {[%emt 0:00:03]} 31. Nc3 {
[%emt 0:00:06]} Rxd2 {[%emt 0:00:06]} 32. Qxd2 {[%emt 0:00:01]} a6 {[%emt 0:00:
01]} 33. Na4 {[%emt 0:00:29]} Qc6 {[%emt 0:00:03]} 34. Qa5 {[%emt 0:00:06]} Kb8
{[%emt 0:00:06]} 35. Qxc5 {[%emt 0:00:16]} Qxa4 {[%emt 0:00:02]} 36. Qxe7 {
[%emt 0:00:02]} Qd1+ {[%emt 0:00:02]} 37. Ka2 {[%emt 0:00:00]} Qe2 {[%emt 0:00:
02]} 38. Qxe6 {[%emt 0:00:02]} Qxg2 {[%emt 0:00:02]} 39. Qd6+ {[%emt 0:00:01]}
Ka7 {[%emt 0:00:01]} 40. e6 {[%emt 0:00:02]} Qe2 {[%emt 0:00:02]} 41. Qc5+ {
[%emt 0:00:02]} Ka8 {[%emt 0:00:02]} 42. e7 {[%emt 0:00:02]} Qe4 {[%emt 0:00:
02]} 43. Qc8+ {[%emt 0:00:02]} 1-0

[Event "FIDE Women World Blitz 2021"]
[Site "Warsaw"]
[Date "2021.12.29"]
[Round "1.17"]
[White "Kamalidenova, Meruert"]
[Black "Movsesian, Julia"]
[Result "1-0"]
[ECO "C41"]
[WhiteElo "2339"]
[BlackElo "2322"]
[Annotator "NA"]
[PlyCount "78"]
[EventDate "2021.12.29"]
[EventType "swiss"]
[EventCountry "POL"]
[Tiebreak "Cut1 Buchholz"]
[SourceTitle "playchess.com"]
[Source "ChessBase"]
[SourceQuality "1"]
[TimeControl "180+2"]

1. e4 {[%emt 0:00:03]} d6 {[%emt 0:00:01]} 2. d4 {[%emt 0:00:02]} Nf6 {[%emt 0:
00:01]} 3. Nc3 {[%emt 0:00:01]} e5 {[%emt 0:00:00]} 4. Nf3 {[%emt 0:00:07]}
Nbd7 {[%emt 0:00:01]} 5. Bc4 {[%emt 0:00:06]} Be7 {[%emt 0:00:01]} 6. O-O {
[%emt 0:00:02]} O-O {[%emt 0:00:02]} 7. Re1 {[%emt 0:00:04]} c6 {[%emt 0:00:03]
} 8. a4 {[%emt 0:00:01]} h6 {[%emt 0:00:17]} 9. h3 {[%emt 0:00:03]} Re8 {
[%emt 0:00:19]} 10. a5 {[%emt 0:00:11]} Qc7 {[%emt 0:00:03]} 11. Bb3 {[%emt 0:
00:37]} Bf8 {[%emt 0:00:15]} 12. d5 {[%emt 0:00:34]} cxd5 {[%emt 0:00:58]} 13.
Nxd5 {[%emt 0:00:10]} Nxd5 {[%emt 0:00:01]} 14. Bxd5 {[%emt 0:00:09]} Nf6 {
[%emt 0:00:01]} 15. Bb3 {[%emt 0:00:10]} Be6 {[%emt 0:00:08]} 16. c3 {[%emt 0:
00:04]} Qc6 {[%emt 0:00:30]} 17. Ba4 {[%emt 0:00:05]} Qc7 {[%emt 0:00:10]} 18.
Bxe8 {[%emt 0:00:02]} Rxe8 {[%emt 0:00:01]} 19. Be3 {[%emt 0:00:06]} Nxe4 {
[%emt 0:00:14]} 20. Bxa7 {[%emt 0:00:05]} Nf6 {[%emt 0:00:01]} 21. Bb6 {
[%emt 0:00:06]} Qc6 {[%emt 0:00:02]} 22. Qa4 {[%emt 0:00:05]} Qc8 {[%emt 0:00:
08]} 23. a6 {[%emt 0:00:09]} bxa6 {[%emt 0:00:07]} 24. Qxa6 {[%emt 0:00:01]}
Qc6 {[%emt 0:00:00]} 25. Be3 {[%emt 0:00:07]} Qd7 {[%emt 0:00:18]} 26. Qa7 {
[%emt 0:00:14]} Qb5 {[%emt 0:00:02]} 27. Qb6 {[%emt 0:00:06]} Qd5 {[%emt 0:00:
04]} 28. Red1 {[%emt 0:00:03]} Qc4 {[%emt 0:00:02]} 29. Qb4 {[%emt 0:00:10]}
Qc6 {[%emt 0:00:02]} 30. Qa5 {[%emt 0:00:03]} Qb7 {[%emt 0:00:01]} 31. Qb6 {
[%emt 0:00:02]} Qe4 {[%emt 0:00:01]} 32. b4 {[%emt 0:00:03]} Nd5 {[%emt 0:00:
04]} 33. Qc6 {[%emt 0:00:04]} Rc8 {[%emt 0:00:00]} 34. Qa4 {[%emt 0:00:02]}
Nxc3 {[%emt 0:00:02]} 35. Qa6 {[%emt 0:00:04]} Nxd1 {[%emt 0:00:01]} 36. Rxd1 {
[%emt 0:00:01]} Qg6 {[%emt 0:00:06]} 37. Kh1 {[%emt 0:00:03]} Be7 {[%emt 0:00:
01]} 38. Qb7 {[%emt 0:00:02]} Bf8 {[%emt 0:00:02]} 39. b5 {[%emt 0:00:01]} Qf6
{[%emt 0:00:10]} 1-0

[Event "FIDE Women World Blitz 2021"]
[Site "Warsaw"]
[Date "2021.12.29"]
[Round "1.18"]
[White "Mammadova, Gulnar"]
[Black "Salimova, Nurgyul"]
[Result "0-1"]
[ECO "B12"]
[WhiteElo "2395"]
[BlackElo "2353"]
[Annotator "NA"]
[PlyCount "56"]
[EventDate "2021.12.29"]
[EventType "swiss"]
[EventCountry "POL"]
[Tiebreak "Cut1 Buchholz"]
[SourceTitle "playchess.com"]
[Source "ChessBase"]
[SourceQuality "1"]
[TimeControl "180+2"]

1. e4 {[%emt 0:00:01]} c6 {[%emt 0:00:01]} 2. d4 {[%emt 0:00:01]} d5 {[%emt 0:
00:01]} 3. f3 {[%emt 0:00:01]} e6 {[%emt 0:00:04]} 4. Nc3 {[%emt 0:00:02]} Bb4
{[%emt 0:00:07]} 5. Bf4 {[%emt 0:00:24]} Ne7 {[%emt 0:00:09]} 6. Qd2 {[%emt 0:
00:05]} Ng6 {[%emt 0:01:24]} 7. Bg3 {[%emt 0:00:02]} Nd7 {[%emt 0:00:04]} 8. a3
{[%emt 0:00:02]} Be7 {[%emt 0:00:09]} 9. Bd3 {[%emt 0:00:10]} b5 {[%emt 0:00:
22]} 10. exd5 {[%emt 0:00:15]} exd5 {[%emt 0:00:02]} 11. f4 {[%emt 0:00:04]}
O-O {[%emt 0:00:18]} 12. Nf3 {[%emt 0:00:04]} b4 {[%emt 0:00:07]} 13. axb4 {
[%emt 0:00:04]} Bxb4 {[%emt 0:00:02]} 14. O-O {[%emt 0:00:04]} Nf6 {[%emt 0:00:
03]} 15. f5 {[%emt 0:00:04]} Ne7 {[%emt 0:00:04]} 16. Ne5 {[%emt 0:00:05]} Qb6
{[%emt 0:00:17]} 17. Qf4 {[%emt 0:00:10]} Nh5 {[%emt 0:00:08]} 18. Qh4 {
[%emt 0:00:04]} Nxg3 {[%emt 0:00:02]} 19. hxg3 {[%emt 0:00:01]} f6 {[%emt 0:00:
02]} 20. Nf3 {[%emt 0:00:13]} Nxf5 {[%emt 0:00:08]} 21. Bxf5 {[%emt 0:00:45]}
Bxf5 {[%emt 0:00:01]} 22. Rf2 {[%emt 0:00:05]} Bg6 {[%emt 0:00:04]} 23. g4 {
[%emt 0:00:09]} Rae8 {[%emt 0:00:03]} 24. g5 {[%emt 0:00:02]} fxg5 {[%emt 0:00:
02]} 25. Qxg5 {[%emt 0:00:05]} Be7 {[%emt 0:00:00]} 26. Qd2 {[%emt 0:00:05]}
Bf6 {[%emt 0:00:04]} 27. Na4 {[%emt 0:00:09]} Qc7 {[%emt 0:00:00]} 28. Nc5 {
[%emt 0:00:04]} Be4 {[%emt 0:00:01]} 0-1